[Event "Prague Festival Challengers 2019"]
[Site "Prague"]
[Date "2019.03.09"]
[Round "4.2"]
[White "Bartel, Mateusz"]
[Black "Michalik, Peter"]
[Result "1/2-1/2"]
[ECO "C67"]
[WhiteElo "2600"]
[BlackElo "2565"]
[Annotator "ChessBase"]
[PlyCount "97"]
[EventDate "2019.03.06"]
[EventType "tourn"]
[EventCountry "CZE"]
[SourceTitle "playchess.com"]
[Source "ChessBase"]
[SourceQuality "1"]
[TimeControl "40/5400+30:1800+30"]

1. e4 {[%emt 0:00:00]} e5 {[%emt 0:00:00]} 2. Nf3 {[%emt 0:00:00]} Nc6 {[%emt 0:00:00]} 3. Bb5 {[%emt 0:00:00]} Nf6 {[%emt 0:00:00]} 4. O-O {[%emt 0:00:00]} Nxe4 {[%emt 0:00:00]} 5. Re1 {[%emt 0:00:00]} Nd6 {[%emt 0:00:00]} 6. Nxe5 {[%emt 0:00:00]} Nxe5 {[%emt 0:00:13]} 7. Rxe5+ {[%emt 0:00:08]} Be7 {[%emt 0:00:05]} 8. Bf1 {[%emt 0:00:05]} O-O {[%emt 0:00:06]} 9. d4 {[%emt 0:00:05]} Bf6 {[%emt 0:00:17]} 10. Re1 {[%emt 0:00:05]} Re8 {[%emt 0:01:21]} 11. Rxe8+ {[%emt 0:00:08]} Nxe8 {[%emt 0:00:24]} 12. d5 {[%emt 0:00:05]} d6 {[%emt 0:03:10]} 13. Nd2 {[%emt 0:00:04]} Be7 {[%emt 0:02:07]} 14. Nc4 {[%emt 0:12:19]} Nf6 {[%emt 0:05:47]} 15. Bf4 {[%emt 0:00:20]} Bf5 {[%emt 0:02:29]} 16. Ne3 {[%emt 0:13:33]} Bg6 {[%emt 0:00:24]} 17. Be2 {[%emt 0:00:38]} Nd7 {[%emt 0:08:56]} 18. c3 {[%emt 0:03:13]} Nc5 {[%emt 0:03:54]} 19. g3 {[%emt 0:06:16]} a5 {[%emt 0:02:22]} 20. h4 {[%emt 0:01:28]} h6 {[%emt 0:00:05]} 21. Ng4 {[%emt 0:04:11]} Qd7 {[%emt 0:04:20]} 22. Be3 {[%emt 0:03:56]} Ne4 {[%emt 0:14:05]} 23. a4 {[%emt 0:10:55]} Nf6 {[%emt 0:03:33]} 24. Bd4 {[%emt 0:09:05]} Nxg4 {[%emt 0:10:50]} 25. Bxg4 {[%emt 0:00:00]} Bf5 {[%emt 0:00:04]} 26. Bxf5 {[%emt 0:00:32]} Qxf5 {[%emt 0:00:06]} 27. Qe2 {[%emt 0:00:04]} Qd7 {[%emt 0:08:07]} 28. Re1 {[%emt 0:01:55]} Bf8 {[%emt 0:00:06]} 29. b3 {[%emt 0:03:04]} c5 {[%emt 0:01:09]} 30. Be3 {[%emt 0:03:02]} Qf5 {[%emt 0:03:37]} 31. c4 {[%emt 0:00:28]} Re8 {[%emt 0:00:49]} 32. Kg2 {[%emt 0:00:06]} h5 {[%emt 0:05:42]} 33. Qf3 {[%emt 0:00:13]} Qxf3+ {[%emt 0:00:22]} 34. Kxf3 {[%emt 0:00:02]} b6 {[%emt 0:01:13]} 35. g4 {[%emt 0:04:05]} hxg4+ {[%emt 0:00:14]} 36. Kxg4 {[%emt 0:00:04]} Re4+ {[%emt 0:00:50]} 37. f4 {[%emt 0:00:32]} g6 {[%emt 0:05:20]} 38. h5 {[%emt 0:10:06]} Bg7 {[%emt 0:00:25]} 39. hxg6 {[%emt 0:10:18]} fxg6 {[%emt 0:00:17]} 40. Bf2 {[%emt 0:00:00]} Rxe1 {[%emt 0:00:00]} 41. Bxe1 {[%emt 0:00:16]} Bf6 {[%emt 0:07:08]} 42. f5 {[%emt 0:00:47]} gxf5+ {[%emt 0:00:44]} 43. Kxf5 {[%emt 0:00:09]} Kf7 {[%emt 0:00:02]} 44. Bg3 {[%emt 0:00:26]} Be7 {[%emt 0:00:03]} 45. Bf4 {[%emt 0:00:42]} Bf8 {[%emt 0:00:04]} 46. Bg5 {[%emt 0:00:19]} Bg7 {[%emt 0:00:05]} 47. Bd8 {[%emt 0:03:20]} Bc3 {[%emt 0:00:05]} 48. Bxb6 {[%emt 0:00:06]} Ke7 {[%emt 0:00:03]} 49. Ke4 {[%emt 0:00:31]} 1/2-1/2